Cogmind - Beta 10.1 *** ADVENTURER MODE // 2020.10.01 @ 22:51:58 Player: Trantor Result: Destroyed by D-53 Grenadier with Mini Grenade Launcher Performance ------------- Evolutions (0) 0 Regions Visited (2) 400 Robots Destroyed (29) 145 Value Destroyed (310) 310 Prototype IDs (4) 80 Alien Tech Used (0) 0 Bonus (0) 0 TOTAL SCORE: 935 Bonus ------- None Cogmind --------- Core Integrity 0/250 Matter 28/300 Energy 100/100 System Corruption 3% Temperature Cool (0) Movement Core (200) Ox3 Location -10/Mines Parts ------- > --- POWER (1) -------- (None) > --- PROPULSION (2) --- (None) > --- UTILITY (2) ------ Medium Storage Unit Visual Processing Unit > --- WEAPON (2) ------- Assault Rifle Assault Rifle > --- INVENTORY (8) ---- Light Ion Engine Light Ion Engine Medium Storage Unit Signal Interpreter Particle Gun Assault Rifle Peak State ------------ > --- POWER ------------ Ion Engine > --- PROPULSION ------- Aluminum Leg Aluminum Leg > --- UTILITY ---------- Medium Storage Unit Visual Processing Unit > --- WEAPON ----------- Grenade Launcher Rocket Launcher > --- INVENTORY -------- Light Ion Engine Light Ion Engine Medium Storage Unit Signal Interpreter Assault Rifle Assault Rifle Assault Rifle Assault Rifle [Rating: 9] Favorites ----------- Power Ion Engine Engine Ion Engine Propulsion Aluminum Leg Leg Aluminum Leg Utility Medium Storage Unit Storage Medium Storage Unit Processor Visual Processing Unit Weapon Assault Rifle Energy Gun Medium Laser Energy Cannon Beam Cannon Ballistic Gun Assault Rifle Ballistic Cannon Light Cannon Launcher Grenade Launcher Build | -11 -10 -10 ------- Run | Scr Mat Min Slots Evolved . | . . . Power . | . . . Propulsion . | . . . Utility . | . . . Weapon . | . . . Parts Attached 39 | 6 27 6 Power 5 | 1 3 1 Engine 5 | 1 3 1 Core . | . . . Reactor . | . . . Propulsion 10 | 2 7 1 Treads . | . . . Leg 10 | 2 7 1 Wheel . | . . . Hover . | . . . Flight . | . . . Utility 6 | 1 5 . Device . | . . . Storage 5 | 1 4 . Processor 1 | . 1 . Hackware . | . . . Protection . | . . . Artifact . | . . . Weapon 18 | 2 12 4 Energy Gun 3 | 2 1 . Energy Cannon 1 | . 1 . Ballistic Gun 8 | . 6 2 Ballistic Cannon 2 | . 2 . Launcher 4 | . 2 2 Special Weapon . | . . . Impact Weapon . | . . . Slashing Weapon . | . . . Piercing Weapon . | . . . Special Melee Weapon . | . . . Unidentified Prototypes . | . . . Parts Lost 8 | . 3 5 Power 1 | . . 1 Propulsion 2 | . . 2 Utility . | . . . Weapon 5 | . 3 2 Highest Loss Streak 5 | . 2 5 Average Slot Usage (%) 95 | . 93 98 Engine 13 | . 13 14 Leg 27 | . 27 27 Storage 18 | . 19 14 Processor 9 | . 7 14 Energy Gun 5 | . 7 . Energy Cannon 1 | . 1 . Ballistic Gun 11 | . 7 21 Ballistic Cannon 2 | . 3 . Launcher 3 | . 2 5 Naked Turns . | . . . Heaviest Build 21 | 11 21 20 Greatest Support 20 | 20 20 20 Greatest Overweight (x) 5 | 3 5 . Average Overweight (x) . | . . . Largest Inventory Capacity 12 | 6 12 8 Average Capacity 7 | 5 7 8 Most Carried 8 | 4 8 8 Average Carried 6 | 2 5 7 Final Capacity 8 | 6 8 8 Final Carried 8 | 4 8 6 Class Distribution -------------------- 100% | Mutant Dominant Class ---------------- Mutant | -10/Materials Mutant | -10/Mines Resources | -11 -10 -10 ----------- Run | Scr Mat Min Matter Collected 569 | 249 190 130 Remotely . | . . . Salvage Created 300 | . 237 63 Parts 20 | . 17 3 Haulers Intercepted . | . . . Recyclers Shooed . | . . . Parts Field Recycled . | . . . Retrieved Matter . | . . . Parts Self-Destructed . | . . . Prevented . | . . . Kills | -11 -10 -10 ------- Run | Scr Mat Min Combat Hostiles Destroyed 27 | . 8 19 Guns 9 | . 8 1 AOE 18 | . . 18 Classes Destroyed 6 | . 3 3 Builder 1 | . . 1 Watcher 1 | . 1 . Swarmer 3 | . 3 . Grunt 5 | . 5 . Demolisher 1 | . . 1 Assembled 18 | . . 18 Best Kill Streak 19 | . 2 19 Combat Bots Only 18 | . 2 18 Max Kills in Single Turn 4 | . 1 4 Gunslinging . | . . . Exploded 4 | . . 4 Melee . | . . . Uniques/NPCs Destroyed . | . . . Combat | -11 -10 -10 -------- Run | Scr Mat Min Damage Taken 1140 | . 397 743 Core 259 | . 99 160 Absorbed by Shields . | . . . Core Remaining (%) 100 | 100 . . Volleys Fired 59 | . 41 18 Largest 2 | . 2 2 Hottest 100 | . 100 63 Shots Fired 90 | . 64 26 Gun 71 | . 63 8 Cannon 1 | . 1 . Launcher 18 | . . 18 Special . | . . . Kinetic 43 | . 35 8 Thermal 29 | . 29 . Explosive 18 | . . 18 Electromagnetic . | . . . Robot Hit Streak 26 | . 26 13 Robot Miss Streak 2 | . 2 2 Penetration Max . | . . . Secondary Targets . | . . . Shots Hit Robots 67 | . 51 16 Core Hits 63 | . 19 44 Critical Hits . | . . . Critical Kills . | . . . Critical Parts Destroyed . | . . . Melee Attacks . | . . . Impact . | . . . Slashing . | . . . Piercing . | . . . Sneak Attacks . | . . . Combat Hostiles . | . . . Follow-up Attacks . | . . . Damage Inflicted 1794 | . 513 1281 Guns 586 | . 487 99 Cannons 17 | . 17 . Explosions 1182 | . . 1182 Melee . | . . . Ramming 9 | . 9 . Kinetic 339 | . 240 99 Thermal 264 | . 264 . Explosive 1182 | . . 1182 Electromagnetic . | . . . Impact . | . . . Slashing . | . . . Piercing . | . . . Highest Corruption 3 | . 3 3 Average Corruption 3 | . 3 3 Corruption Purged . | . . . Effects 15 | . 8 7 Message Errors 4 | . 3 1 Matter Fused 6 | . 1 5 Heat Flow Errors 2 | . 1 1 Energy Discharges 2 | . 2 . Data Loss (minor) 1 | . 1 . Overload Shots . | . . . Overflow Damage 31 | . . 31 Projectiles . | . . . Explosions 31 | . . 31 Melee . | . . . Knockbacks . | . . . Impact . | . . . Kinetic . | . . . Secondary . | . . . Self-Inflicted Damage 53 | . 4 49 Shots 2 | . . 2 Rammed 3 | . 3 . Targets Rammed 3 | . 3 . Kicked . | . . . Crushed . | . . . Highest Temperature 228 | . 228 163 Average Temperature 95 | . 103 40 Received Heat Transfer 279 | . 279 . Siege Activations . | . . . Robots Corrupted . | . . . Combat Hostiles . | . . . Parts Fried . | . . . Impact Corruptions . | . . . Robots Melted . | . . . Combat Hostiles . | . . . Parts Melted 1 | . 1 . Heat Transferred 777 | . 777 . Parts Sabotaged . | . . . Parts Stolen . | . . . Parts Stripped . | . . . Power Chain Reactions . | . . . Missiles Intercepted . | . . . Alert | -11 -10 -10 ------- Run | Scr Mat Min Peak Influence 245 | . 245 30 Initial 4 | . . 4 Average 44 | . 64 5 Maximum Alert Level 1 | . 1 . Low Security (%) 94 | 100 91 100 Level 1 5 | . 8 . Level 2 . | . . . Level 3 . | . . . Level 4 . | . . . Level 5 . | . . . High Security . | . . . Max Security . | . . . Squads Dispatched . | . . . Investigation . | . . . Extermination . | . . . Reinforcement . | . . . Assault . | . . . Garrison . | . . . Intercept . | . . . Construction Impeded . | . . . Haulers Reinforced . | . . . Stealth | -11 -10 -10 --------- Run | Scr Mat Min Distress Signals 4 | . 4 . Communications Jammed . | . . . Distress Signals . | . . . Times Spotted 37 | . 19 18 Peak Tracking Total 8 | . 5 8 Tactical Retreats . | . . . Traps | -11 -10 -10 ------- Run | Scr Mat Min Traps Triggered 5 | . 5 . Indirectly . | . . . Trap Hack Attempts . | . . . Triggered . | . . . Disarmed . | . . . Reprogrammed . | . . . Reused . | . . . Traps Extracted . | . . . Installed . | . . . Triggered . | . . . Machines | -11 -10 -10 ---------- Run | Scr Mat Min Machines Disabled 1 | . . 1 Max in Single Turn 1 | . . 1 Machines Sabotaged . | . . . Garrisons Compromised . | . . . Overloaded Fab Kills . | . . . Fab Network Shutdowns . | . . . Hacking | -11 -10 -10 --------- Run | Scr Mat Min Machines Accessed 6 | . 6 . Terminals 5 | . 5 . Fabricators . | . . . Repair Stations . | . . . Recycling Units 1 | . 1 . Scanalyzers . | . . . Garrison Access . | . . . Total Hacks 16 | . 16 . Successful 11 | . 11 . Failed 5 | . 5 . Catastrophic . | . . . Database Lockouts . | . . . Manual 2 | . 2 . Terminals 14 | . 14 . Fabricators . | . . . Repair Stations . | . . . Recycling Units 2 | . 2 . Scanalyzers . | . . . Garrison Access . | . . . Terminal Hacks 10 | . 10 . Record 3 | . 3 . Prototype ID Bank 2 | . 2 . Scanalyzer Index 1 | . 1 . Unreport Threat 1 | . 1 . Investigation Status 1 | . 1 . Recall Investigation 1 | . 1 . Zone Layout 1 | . 1 . Fabricator Hacks . | . . . Repair Station Hacks . | . . . Recycling Unit Hacks 1 | . 1 . Retrieve Components 1 | . 1 . Scanalyzer . | . . . Garrison Access Hacks . | . . . Unauthorized Hacks . | . . . Terminals . | . . . Fabricators . | . . . Repair Stations . | . . . Recycling Units . | . . . Scanalyzers . | . . . Garrison Access . | . . . Data Cores Recovered . | . . . Used . | . . . Hacking Detections 6 | . 6 . Full Trace Events . | . . . Feedback Events . | . . . Feedback Blocked . | . . . Robot Schematics Acquired . | . . . Robots Built . | . . . Matter . | . . . Time . | . . . Total Robot Build Rating . | . . . Part Schematics Acquired . | . . . Parts Built . | . . . Matter . | . . . Time . | . . . Total Part Build Rating . | . . . Parts Repaired . | . . . Time . | . . . Parts Recycled . | . . . Recycled Matter . | . . . Retrieved Matter . | . . . Retrieved Components 1 | . 1 . Parts Scanalyzed . | . . . Part Schematics Acquired . | . . . Parts Damaged . | . . . Bothacking | -11 -10 -10 ------------ Run | Scr Mat Min Used RIF Installer . | . . . Robots Hacked . | . . . Non-combat . | . . . Combat . | . . . Robot Hacks Applied . | . . . Relay Couplers Released . | . . . Robots Rewired . | . . . Allies Hacked . | . . . Hacks Repelled . | . . . Allies | -11 -10 -10 -------- Run | Scr Mat Min Total Allies . | . . . Largest Group . | . . . Highest-Rated Group . | . . . Highest-Rated Ally . | . . . Total Orders . | . . . Ally Attacks . | . . . Total Damage . | . . . Kills . | . . . Allies Corrupted . | . . . Allies Melted . | . . . Intel | -11 -10 -10 ------- Run | Scr Mat Min Robot Analysis Total . | . . . Derelict Logs Recovered . | . . . Drone Launches . | . . . Drone Recoveries . | . . . Exploration | -11 -10 -10 ------------- Run | Scr Mat Min Turns Passed 1463 | 77 979 407 Spaces Moved 942 | 52 636 254 Core 15 | 13 2 . Treads . | . . . Legs 927 | 39 634 254 Wheels . | . . . Hover . | . . . Flight . | . . . Fastest Speed 50 | 50 120 120 Average Speed 121 | 124 121 120 Slowest Speed 300 | 200 300 120 Overloaded Moves . | . . . Propulsion Burnouts . | . . . Robots Hopped . | . . . Cave-ins Triggered . | . . . Exploration Rate (%) 47 | 4 82 56 Regions Visited 2 Branch Regions 1 Pre-discovered Areas . | . . . Known Exits Taken . | . . . Unknown Exits Taken 2 | 1 1 . Scrap Searched 1 | . . 1 Spaces Dug . | . . . Terrain Destroyed 81 | . . 81 Melee . | . . . Projectile . | . . . AOE 81 | . . 81 Terrain Rammed . | . . . Walls Destroyed . | . . . Machines Disabled . | . . . Actions | -11 -10 -10 --------- Run | Scr Mat Min Total 1174 | 61 780 333 Wait 102 | . 55 47 Move 940 | 51 635 254 Hop . | . . . Pick Up 17 | 4 10 3 Fast Attach 20 | 6 14 . Attach 7 | . 5 2 Detach 1 | . 1 . Swap 12 | . 8 4 Drop 13 | . 8 5 Fire 59 | . 41 18 Melee . | . . . Ram . | . . . Kick 3 | . 3 . Crush . | . . . Escape Stasis . | . . . Rewire . | . . . Trap . | . . . Miscellaneous . | . . . Route ------- -11/Scrapyard -10/Materials (discovered 3 exits: [*Mat x2] / [*Min]) -10/Mines History --------- Turn | Location | Event 19 | -11/Scrapyard | Discovered new exit (range 16) 78 | -11/Scrapyard | Entered Materials 163 | -10/Materials | Discovered new exit (range 16) 308 | -10/Materials | Build established: Mutant 493 | -10/Materials | Discovered new exit (range 14) 875 | -10/Materials | Discovered new exit (range 13) 1057 | -10/Materials | Entered Mines 1348 | -10/Mines | Received a Rocket Launcher from a helpful Derelict 1357 | -10/Mines | Assembled infested the area 1416 | -10/Mines | Destroyed 18 combat bots 1447 | -10/Mines | Core integrity fell below 50% 1453 | -10/Mines | Core integrity fell below 20% 1464 | -10/Mines | Destroyed by D-53 Grenadier with Mini Grenade Launcher Last Messages --------------- 01434_ Acquired Assault Rifle. 01437_ Acquired 36 matter. 01438_ C-30 ARC bursts open, deploying its payload. 01438_ D-53 Grenadier unfolds itself. 01439_ The unstable cave ceiling collapses. 01440_ Dropped Ion Engine. 01442_ The unstable cave ceiling collapses. 01444_ Seismic Survey Station disabled. 01444_ Rocket Launcher destroyed. 01444_ as-95444 destroyed. 01450_ The unstable cave ceiling collapses. 01450_ Grenade Launcher destroyed. 01451_ The unstable cave ceiling collapses. 01452_ Aluminum Leg destroyed. 01453_ The unstable cave ceiling collapses. 01454_ Aluminum Leg destroyed. 01456_ The unstable cave ceiling collapses. 01459_ D-53 Grenadier destroyed. 01460_ The unstable cave ceiling collapses. 01462_ Ion Engine destroyed. Map ----- +----------------------------------------------------+ | ?????????# ####### #???????????????# #??????? | | ?????????## ##????# #???????????????# #??????? | | ??????????# ##???# #???????????????# #??????? | | ??????????# ##??# #???????????????# #????### | | ??????????## ##?# #???????????????# #????# | | ???????????# ### #?????###???????# ###### # | | ???????????# ## ##???? ##??????# # | | ???????????# ##?? #??????######## # | | ??????###### ### #?????????????# # | | ?????## # ##????????##### # | | ????## # # # ######???# | | ????# ! " % #??# | | ???# % """" #### | | ???# # # # """" ???? | | ??# # # # # """" ????? | | ??# ######### ## ?????? | | ??## #????????#### # ##??????? | | ???###???????????#### ##### #????????? | | ????????????????## # d #? ##???##??????????? | | ???????????????## [ ??##????????????????? | | ???????????????# !% #????????????????????? | | ??????????????# # ##???????????????????? | | ?????????????# " # ##??????????????????? | | ????????????# # #??????????????????? | | ???????????# ?# #??????????????????? | | ??????????# ??# @ #??????????????????? | | ????????? ???# #??????????????????? | | ???????? ????# #??????????????????? | | ????????? ?????# ##??????????????????? | | ?????????? ###??????## #???????????????????? | | ?????????????????????# ###???????????????????? | | ????????????????????? ?????????????????????? | | ????????????????????##### $ ?????????????????????? | | ????????????????????????# #?????????????????????? | | ????????????????????????# #?????????????????????? | | ????????????????????????? #?????????????????????? | | ????????????????????????? #?????????????????????? | | ?????????????????????????###?????????????????????? | | ?????????????????????????????????????????????????? | | ?????????????????????????????????????????????????? | | ?????????????????????????????????????????????????? | | ?????????????????????????????????????????????????? | | ?????????????????????????????????????????????????? | | ?????????????????????????????????????????????????? | | ?????????????????????????????????????????????????? | | ?????????????????????????????????????????????????? | | ?????????????????????????????????????????????????? | | ?????????????????????????????????????????????????? | | ?????????????????????????????????????????????????? | | ?????????????????????????????????????????????????? | +----------------------------------------------------+ Best States ------------- Heat Dissipation 25 Energy Generation 10 Energy Capacity 250 Matter Stores 300 Matter Capacity 300 Sight Range 18 Terrain Scan Density 10 Resistance: KI 20 Resistance: TH 20 Resistance: EX 20 Resistance: EM 20 Resistance: I 20 Resistance: S 20 Resistance: P 20 Evasion (%) 40 Offensive Hacking 10 Item Schematics ----------------- None Robot Schematics ------------------ None Fabricated ------------ Nothing Alien Tech Used ----------------- None Achievements -------------- Exterminator Challenges ------------ None Game ------ Seed InsulationVortexExpander Manual? 0 Play Time 00:23:16 Cumulative 24.7 hours Start 2020.10.01 @ 22:29:45 End 2020.10.01 @ 22:51:58 Sessions 1 Manual Loads 0 Difficulty Adventurer Special Mode None Game No. 13 Rogue 0 Adventurer 13 Explorer 0 Win Type - Total 0 Types 0/0/0/0/0/0/0/0/0 Lore% 14 Gallery% 23 Achievement% 19 Wizard Run 0 Options --------- ASCII 0 Keyboard 1 Movement Vi Keybinds 1 Fullscreen 2 Font 14/SmallcapsGlow Map View 84x54 Tactical HUD 1 Map Filters NONE Filters NONE Steam 1 RUN: a848c8b8-8edf-43ba-b856-1d3198fec056